fUSD/lending_fUSD_20250413
["ID","MTS","AMOUNT","RATE_DAILY","PERIOD"]
[357920478,1744558241040,-502.5045184,0.00019973,2]
[357920479,1744558241050,-500.0,0.00019973,2]
[357920480,1744558241059,-1498.41698917,0.00019979,2]
[357920481,1744558241069,-1498.41698917,0.00019979,2]
[357920482,1744558241079,-1498.41698917,0.00019979,2]
[357920483,1744558241089,-1498.41698917,0.00019979,2]
[357920484,1744558241098,-1498.41698917,0.00019979,2]
[357920485,1744558241108,-1498.41698917,0.00019979,2]
[357920486,1744558241118,-1498.41698917,0.00019979,2]
[357920487,1744558241131,-1498.41698917,0.00019979,2]
[357920488,1744558241143,-1498.41698917,0.00019979,2]
[357920489,1744558241153,-1498.41698917,0.00019979,2]
[357920490,1744558241163,-152.17,0.0001998,2]
[357920491,1744558241172,-152.17,0.0001998,2]
[357920492,1744558241183,-44029.79202244,0.00019986,2]
[357920493,1744558241213,-5717.70541146,0.00019986,2]
[357920494,1744558241223,-7953.190248,0.00019986,2]
[357920495,1744558241233,-3149.695456,0.00019986,2]
[357920496,1744558241243,-255.55020209,0.00019988,2]
[357920497,1744558241253,-239.82019471,0.00019988,2]
[357920498,1744558241262,-224.16025533,0.00019989,2]
[357920499,1744558241272,-235.52287868,0.00019989,2]
[357920500,1744558241281,-152.17,0.0001999,2]
[357920501,1744558241291,-152.17,0.0001999,2]
[357920502,1744558241300,-152.17,0.0001999,2]
[357920503,1744558241310,-152.17,0.0001999,2]
[357920504,1744558241320,-152.17,0.0001999,2]
[357920505,1744558241330,-152.17,0.0001999,2]
[357920506,1744558241340,-62850.75277434,0.0001999,2]
[357920507,1744558241349,-256.19765915,0.0001999,2]
[357920508,1744558241360,-808.0,0.0002,2]
[357920509,1744558241369,-75393.92343494,0.0002,2]
[357920510,1744558241381,-10372.79048274,0.0002,2]
[357920511,1744558241393,-719.14568,0.0002,2]
[357920512,1744558243159,-217.22693713,0.00019,2]
[357920513,1744558243169,-151.40107213,0.0002,2]
[357920528,1744558245067,-504.76511919,0.0002,2]
[357920529,1744558245078,-1672.35107214,0.0002,2]
[357920530,1744558245089,-2436.79189442,0.0002,2]
[357920531,1744558245227,-0.00410222,0.0002,2]
[357920533,1744558246172,-4442.86848709,0.0002,2]
[357920534,1744558246184,-502.5,0.0002,2]
[357920535,1744558246510,-0.19059873,0.0002,2]
[357920536,1744558246521,-454.64521959,0.0002,2]
[357920537,1744558246578,-85011.44044045,0.0002,2]
[357920538,1744558246588,-232171.90773739,0.0002,2]
[357920540,1744559325681,-390.46218679,0.00017337,2]
[357920580,1744559432488,-234.53781321,0.00017337,2]
[357920581,1744559432498,-250.0,0.00017753,2]
[357920582,1744559432508,-218.90776977,0.00018971,2]
[357920583,1744559432518,-250.0,0.00019,2]
[357920584,1744559432527,-250.0,0.00019064,2]
[357920585,1744559432541,-250.0,0.00019071,2]
[357920586,1744559432550,-250.0,0.00019071,2]
[357920587,1744559432559,-204.94,0.00019114,2]
[357920588,1744559432568,-850.0,0.00019177,2]
[357920589,1744559432579,-317.96127505,0.00019177,2]
[357920590,1744559432588,-500.0,0.00019178,2]
[357920591,1744559432597,-363.52222587,0.00019178,2]
[357920592,1744559432606,-500.0,0.00019178,2]
[357920593,1744559432616,-225.38296261,0.00019178,2]
[357920594,1744559432626,-785.27495349,0.00019178,2]
[357920595,1744559432638,-383.12875825,0.00019178,2]
[357920596,1744559432649,-1231.85132041,0.00019178,2]
[357920597,1744559432660,-209.46496785,0.00019178,2]
[357920598,1744559432670,-219.12643443,0.00019178,2]
[357920599,1744559432691,-540.49795588,0.00019178,2]
[357920630,1744559438413,-271.9274761,0.00019178,2]
[357920631,1744559438425,-355.80813359,0.00019178,2]
[357920632,1744559438434,-500.0,0.00019178,2]
[357920633,1744559438444,-500.0,0.00019178,2]
[357920634,1744559438454,-500.0,0.00019178,2]
[357920636,1744559438463,-223.4416263,0.00019178,2]
[357920637,1744559438607,-276.5583737,0.00019178,2]
[357920638,1744559438616,-785.73718163,0.00019178,2]
[357920639,1744559438629,-3012.18350575,0.00019178,2]
[357920640,1744559438641,-999.42965019,0.00019178,2]
[357920641,1744559438652,-534.82997,0.00019178,2]
[357920642,1744559438664,-22220.87097642,0.00019178,2]
[357920643,1744559438675,-1031.75586833,0.00019178,2]
[357920644,1744559438688,-420.61595996,0.00019178,2]
[357920645,1744559438699,-2964.43119029,0.000192,2]
[357920646,1744559438717,-4751.55500028,0.000192,2]
[357920647,1744559438729,-1594.82024492,0.000192,2]
[357920648,1744559438740,-263.59657455,0.000192,2]
[357920649,1744559438752,-2214.82404154,0.000192,2]
[357920650,1744559438764,-710.77294842,0.000192,2]
[357920651,1744559438774,-481.35,0.00019297,2]
[357920652,1744559438783,-1000.0,0.00019297,2]
[357920653,1744559438793,-823.07,0.00019297,2]
[357920654,1744559438802,-500.0,0.00019452,2]
[357920655,1744559438811,-2609.72,0.00019452,2]
[357920656,1744559438822,-1387.36,0.00019452,2]
[357920657,1744559438831,-500.0,0.00019452,2]
[357920658,1744559438840,-500.0,0.00019452,2]
[357920659,1744559438850,-500.0,0.00019452,2]
[357920660,1744559438860,-500.0,0.00019452,2]
[357920661,1744559438870,-1099.41415665,0.000196,2]
[357920662,1744559438880,-1095.00855684,0.000196,2]
[357920663,1744559438890,-625.0,0.00019601,2]
[357920664,1744559438899,-500.0,0.00019726,2]
[357920666,1744559438909,-2609.72,0.00019726,2]
[357920668,1744559438919,-1387.36,0.00019726,2]
[357920670,1744559438929,-500.0,0.00019726,2]
[357920672,1744559438939,-449.673,0.00019726,2]
[357920674,1744559438950,-500.0,0.00019726,2]
[357920676,1744559438960,-500.0,0.00019726,2]
[357920678,1744559438973,-500.0,0.0001989,2]
[357920680,1744559438984,-157.7773641,0.00019899,2]
[357920682,1744559438994,-157.77736405,0.00019899,2]
[357920684,1744559439004,-157.77736405,0.00019899,2]
[357920686,1744559439015,-157.77736405,0.000199,2]
[357920688,1744559439025,-157.77736405,0.000199,2]
[357920690,1744559439035,-157.77736405,0.000199,2]
[357920692,1744559439046,-2809.21389444,0.000199,2]
[357920694,1744559439058,-977.01541486,0.000199,2]
[357920696,1744559439070,-812.1487065,0.000199,2]
[357920698,1744559439080,-157.77736405,0.000199,2]
[357920700,1744559439091,-284.37605279,0.000199,2]
[357920702,1744559439102,-448.03075214,0.000199,2]
[357920704,1744559439114,-152.0,0.00019918,2]
[357920706,1744559439126,-1944.686,0.00019928,2]
[357920708,1744559439136,-174.288,0.00019928,2]
[357920710,1744559439147,-500.0,0.00019973,2]
[357920712,1744559439157,-500.0,0.00019973,2]
[357920714,1744559439168,-639.50354084,0.00019973,2]
[357920716,1744559439178,-500.0,0.00019973,2]
[357920718,1744559439188,-2337.7375675,0.00019986,2]
[357920720,1744559439197,-36639.0621675,0.00019986,2]
[357920722,1744559439207,-5871.4465076,0.00019986,2]
[357920724,1744559439221,-179.42,0.0001999,2]
[357920726,1744559439231,-23738.21863481,0.00019999,2]
[357920728,1744559439242,-232.46189138,0.00019999,2]
[357920730,1744559439251,-215.05386647,0.00019999,2]
[357920731,1744559439261,-150.53770652,0.00019999,2]
[357920734,1744559439272,-731.0,0.0002,2]
[357920736,1744559439281,-91200.8112516,0.0002,2]
[357920738,1744559439291,-145175.30166068,0.0002,2]
[357920762,1744559440599,-1000.0,0.0002,2]
[357920764,1744559440611,-1705.5582732,0.0002,2]
[357920766,1744559440623,-633.81430565,0.0002,2]
[357920770,1744559440720,-370521.90979834,0.0002,2]
[357920771,1744559440821,-23643.44920508,0.0002,2]
[357920772,1744559440925,-34064.09531019,0.0002,2]
[357920773,1744559440936,-837284.2184752,0.0002,2]
[357920774,1744559440948,-447.336641,0.0002,2]
[357920775,1744559441015,-166.37049195,0.000199,2]
[357920776,1744559441024,-179172.79863617,0.0002,2]
[357920777,1744559441035,-12657.86084069,0.0002,2]
[357920778,1744559441047,-289.15000193,0.0002,2]
[357920779,1744559441058,-1049.41419005,0.0002,2]
[357920780,1744559441069,-1685.77121904,0.0002,2]
[357920781,1744559441080,-1007.52312096,0.0002,2]
[357920782,1744559441091,-398.09970515,0.0002,2]
[357920783,1744559441102,-713.97602152,0.0002,2]
[357920795,1744559445288,-507.53028692,0.0002,2]
[357920796,1744559445299,-80239.58559273,0.0002,2]
[357920797,1744559445310,-602.39509999,0.0002,2]
[357920798,1744559445321,-805.78275374,0.0002,2]
[357920799,1744559445331,-5351.76263449,0.0002,2]
[357920800,1744559445343,-3268.2265522,0.0002,2]
[357920801,1744559445354,-5694.39325844,0.0002,2]
[357920802,1744559445369,-515.811067,0.0002,2]
[357920803,1744559445381,-641.99246739,0.0002,2]
[357920804,1744559445392,-565.99524606,0.0002,2]
[357920805,1744559445403,-9601.30391237,0.0002,2]
[357920806,1744559445414,-2075412.2483815,0.0002,2]
[357920807,1744559445425,-423.95581672,0.0002,2]
[357920808,1744559445436,-762.15715012,0.0002,2]
[357920809,1744559445447,-3938.30742084,0.0002,2]
[357920810,1744559445458,-986.084731,0.0002,2]
[357920813,1744559446334,-12996.73955785,0.0002,2]
[357920814,1744559446415,-4719.1269524,0.0002,2]
[357920815,1744559446499,-980.88,0.0002,2]
[357920816,1744559446511,-2000.0,0.0002,2]
[357920817,1744559446522,-39292.67442012,0.0002,2]
[357920818,1744559446577,-819.74063257,0.0002,2]
[357920819,1744559446590,-149252.43398719,0.0002,2]
[357920907,1744560637803,-624.81,0.00017319,2]
[357920908,1744560637813,-250.0,0.00017551,2]
[357920909,1744560637823,-250.0,0.000182,2]
[357920910,1744560637832,-214.771189,0.00018413,2]
[357920911,1744560637842,-250.0,0.00018978,2]
[357920912,1744560637852,-250.0,0.00019,2]
[357920913,1744560637862,-220.34292422,0.00019051,2]
[357920914,1744560637988,-29.65707578,0.00019051,2]
[357920915,1744560637998,-2821.38,0.00019053,2]
[357920916,1744560638008,-411.82608849,0.00019178,2]
[357920917,1744560638017,-500.0,0.00019178,2]
[357920918,1744560638026,-2283.5,0.00019178,2]
[357920919,1744560638035,-1213.94,0.00019178,2]
[357920920,1744560638044,-500.0,0.00019178,2]
[357920921,1744560638053,-500.0,0.00019178,2]
[357920922,1744560638062,-412.11418316,0.00019178,2]
[357920923,1744560638072,-204.73,0.00019179,2]
[357920924,1744560638081,-1000.0,0.00019305,2]
[357920925,1744560638090,-500.0,0.00019452,2]
[357920926,1744560638099,-2283.5,0.00019452,2]
[357920927,1744560638108,-1213.94,0.00019452,2]
[357920928,1744560638116,-500.0,0.00019452,2]
[357920929,1744560638126,-500.0,0.00019452,2]
[357920930,1744560638134,-624.81,0.00019583,2]
[357920931,1744560638143,-1051.22650804,0.000196,2]
[357920932,1744560638153,-1120.2542541,0.000196,2]
[357920933,1744560638161,-464.65673858,0.00019726,2]
[357920940,1744560639845,-35.34326142,0.00019726,2]
[357920941,1744560639855,-337.15023857,0.00019726,2]
[357920942,1744560639960,-1189.62248917,0.00019726,2]
[357920943,1744560639974,-756.72727226,0.00019726,2]
[357920944,1744560639986,-504.641662,0.00019726,2]
[357920945,1744560640000,-709.298338,0.00019726,2]
[357920946,1744560640010,-500.0,0.00019726,2]
[357920947,1744560640021,-500.0,0.00019726,2]
[357920948,1744560640030,-518.74317875,0.000199,2]
[357920949,1744560640040,-150.0,0.00019918,2]
[357920950,1744560640049,-608.78042851,0.00019973,2]
[357920951,1744560640059,-174.288,0.00019973,2]
[357920952,1744560640067,-500.0,0.00019973,2]
[357920953,1744560640077,-1555.749,0.00019973,2]
[357920954,1744560640087,-4386.9200445,0.00019986,2]
[357920955,1744560640096,-1741.1378088,0.00019986,2]
[357920956,1744560640106,-27462.390555,0.00019986,2]
[357920957,1744560640115,-162.72332397,0.00019999,2]
[357920958,1744560640125,-648.0,0.0002,2]
[357920959,1744560640135,-18101.31959723,0.0002,2]
[357920960,1744560640157,-947.66428876,0.0002,2]
[357920961,1744560640320,-16004.34795985,0.0002,2]
[357920965,1744560642704,-375.73116775,0.0002,2]
[357920978,1744560644272,-958.97315293,0.0002,2]
[357920980,1744560645659,-5401.54119621,0.0002,2]
[357920981,1744560645672,-2971.42621435,0.0002,2]
[357920982,1744560645683,-16691.564558,0.0002,2]
[357920983,1744560645738,-795.69488,0.0002,2]
[357920984,1744560645749,-2728.89998616,0.0002,2]
[357920988,1744561555604,4955.42306302,6.94e-05,2]
[357920992,1744561627147,278.5955,0.000153,2]
[357920993,1744561631006,2640.86638287,0.00015,2]
[357920994,1744561634550,2125.11505411,0.00015,2]
[357920995,1744561634575,1726.98041207,0.00015,2]
[357920998,1744561717901,3567.86360579,0.000149,2]
[357921009,1744561831631,-660.17,0.00017345,2]
[357921011,1744561831640,-250.0,0.00017779,2]
[357921012,1744561831650,-250.0,0.00018446,2]
[357921013,1744561831659,-250.0,0.00018901,2]
[357921014,1744561831668,-623.30371897,0.00019,2]
[357921015,1744561831679,-250.0,0.0001908,2]
[357921016,1744561831688,-150.0,0.00019117,7]
[357921017,1744561831697,-300.0,0.00019177,2]
[357921018,1744561831893,-500.0,0.00019178,2]
[357921019,1744561831904,-500.0,0.00019178,2]
[357921020,1744561831913,-1998.06,0.00019178,2]
[357921021,1744561831923,-1062.2,0.00019178,2]
[357921022,1744561831932,-500.0,0.00019178,2]
[357921023,1744561831941,-500.0,0.00019178,2]
[357921024,1744561831951,-204.92,0.0001924,2]
[357921025,1744561831961,-150.99,0.0001924,2]
[357921026,1744561831971,-500.0,0.00019425,2]
[357921027,1744561831980,-150.99,0.00019451,2]
[357921028,1744561831989,-824.0,0.00019451,2]
[357921029,1744561831999,-500.0,0.00019452,2]
[357921030,1744561832008,-1102.86159613,0.00019452,2]
[357921031,1744561832020,-40.65840387,0.00019452,2]
[357921032,1744561832029,-1449.85,0.00019452,2]
[357921033,1744561832039,-703.45090029,0.00019452,2]
[357921034,1744561832050,-294.84302077,0.00019452,2]
[357921035,1744561832061,-2469.79584048,0.00019452,2]
[357921036,1744561832072,-1734.42840479,0.00019452,2]
[357921038,1744561832085,-2487.87541445,0.00019452,2]
[357921041,1744561832098,-300.0,0.00019452,2]
[357921043,1744561832109,-294.95208081,0.00019452,2]
[357921047,1744561832120,-4147.87461738,0.00019452,2]
[357921050,1744561832131,-3525.62211806,0.00019452,2]
[357921054,1744561832146,-291.06,0.00019452,2]
[357921139,1744561837667,-316.5669518,0.00019452,2]
[357921140,1744561837937,-705.72902975,0.00019452,2]
[357921229,1744561839997,-1569.57914326,0.00019452,2]
[357921230,1744561840010,-446.69547044,0.00019452,2]
[357921231,1744561840021,-1489.02800331,0.00019452,2]
[357921232,1744561840165,-5313.51900441,0.00019452,2]
[357921233,1744561840176,-500.0,0.00019452,2]
[357921234,1744561840187,-1998.06,0.00019452,2]
[357921235,1744561840197,-1062.2,0.00019452,2]
[357921236,1744561840209,-370.61438685,0.00019452,2]
[357921237,1744561840220,-572.24377167,0.00019452,2]
[357921238,1744561840230,-1000.0,0.00019489,2]
[357921239,1744561840241,-1134.72815453,0.000196,2]
[357921240,1744561840250,-1065.44590678,0.000196,2]
[357921241,1744561840259,-1594.82024492,0.000196,2]
[357921242,1744561840269,-660.17,0.00019609,2]
[357921243,1744561840278,-596.27503709,0.00019726,2]
[357921244,1744561840288,-500.0,0.00019726,2]
[357921245,1744561840301,-1998.06,0.00019726,2]
[357921246,1744561840311,-1062.2,0.00019726,2]
[357921247,1744561840320,-212.84153104,0.000199,2]
[357921248,1744561840331,-166.37049195,0.000199,2]
[357921249,1744561840341,-1579.125,0.00019935,2]
[357921251,1744561840350,-174.91306585,0.00019935,2]
[357921253,1744561840362,-162.71441075,0.00019973,2]
[357921255,1744561840372,-500.0,0.00019973,2]
[357921257,1744561840383,-165.85,0.00019981,2]
[357921259,1744561840392,-1314.4290964,0.00019986,2]
[357921261,1744561840404,-15309.46748206,0.00019986,2]
[357921361,1744561842811,-1226.54234139,0.00019986,2]
[357921377,1744561845817,-4196.04539765,0.00019986,2]
[357921378,1744561845828,-1287.68305552,0.00019986,2]
[357921379,1744561845979,-764.51075535,0.00019986,2]
[357921381,1744562293272,704.61,0.00016931,2]
[357921382,1744562371034,150.0,0.0002876,120]
[357921385,1744563031808,-200.0,0.00018525,2]
[357921386,1744563031818,-250.0,0.00018527,2]
[357921387,1744563031828,-1552.65164984,0.0001853,2]
[357921388,1744563031859,-299.76835016,0.0001853,2]
[357921389,1744563031869,-250.0,0.00018653,2]
[357921390,1744563031879,-179.21,0.0001867,2]
[357921391,1744563031889,-250.0,0.0001877,2]
[357921392,1744563031899,-323.61,0.00018772,2]
[357921393,1744563031909,-323.61,0.00018777,2]
[357921394,1744563031919,-323.61,0.00018782,2]
[357921395,1744563031928,-323.61,0.00018787,2]
[357921396,1744563031938,-312.30737727,0.00018792,2]
[357921397,1744563031965,-11.30262273,0.00018792,2]
[357921398,1744563031974,-262.67,0.00018796,2]
[357921399,1744563031984,-323.61,0.00018796,2]
[357921400,1744563031994,-323.61,0.00018801,2]
[357921401,1744563032003,-323.61,0.00018806,2]
[357921402,1744563032014,-323.61,0.00018811,2]
[357921403,1744563032023,-323.61,0.00018816,2]
[357921404,1744563032032,-323.61,0.00018821,2]
[357921405,1744563032042,-555.916941,0.00018823,2]
[357921406,1744563032053,-1838.71549141,0.00018823,2]
[357921407,1744563032068,-1104.23756759,0.00018823,2]
[357921408,1744563032078,-323.61,0.00018826,2]
[357921409,1744563032087,-323.61,0.00018831,2]
[357921410,1744563032097,-323.61,0.00018836,2]
[357921411,1744563032106,-150.0,0.00018838,2]
[357921412,1744563032116,-323.61,0.00018841,2]
[357921413,1744563032126,-323.61,0.00018846,2]
[357921415,1744563032136,-323.61,0.00018851,2]
[357921417,1744563032146,-389.42,0.00018855,2]
[357921419,1744563032155,-323.61,0.00018856,2]
[357921421,1744563032165,-197.78691786,0.00018861,2]
[357921422,1744563032183,-125.82308214,0.00018861,2]
[357921423,1744563032192,-344.56,0.00018865,2]
[357921424,1744563032202,-323.61,0.00018865,2]
[357921425,1744563032212,-746.79,0.00018869,2]
[357921426,1744563032221,-331.01,0.00018869,2]
[357921427,1744563032231,-483.00691786,0.0001887,2]
[357921428,1744563032242,-516.99308214,0.0001887,2]
[357921429,1744563032252,-81.20924835,0.0001887,2]
[357921430,1744563032263,-908.33075165,0.0001887,2]
[357921431,1744563032273,-150.99,0.0001887,2]
[357921432,1744563032282,-184.65,0.00018901,2]
[357921433,1744563032292,-250.0,0.00019,2]
[357921434,1744563032301,-500.0,0.00019178,2]
[357921435,1744563032311,-1748.31,0.00019178,2]
[357921436,1744563032321,-35.4347437,0.00019178,2]
[357921437,1744563032332,-915.0152563,0.00019178,2]
[357921438,1744563032342,-241.82500737,0.00019178,2]
[357921439,1744563032351,-795.8856892,0.00019178,2]
[357921440,1744563032369,-4086.11267,0.00019178,2]
[357921443,1744563038072,-3068.8356604,0.00019178,2]
[357921444,1744563038230,-3193.79999994,0.00019178,2]
[357921463,1744563039975,-12060.28457875,0.00019178,2]
[357921464,1744563039985,-704.61,0.00019195,2]
[357921465,1744563039995,-151.86,0.00019342,2]
[357921466,1744563040004,-500.0,0.00019452,2]
[357921467,1744563040013,-1748.31,0.00019452,2]
[357921468,1744563040023,-950.45,0.00019452,2]
[357921469,1744563040033,-500.0,0.00019726,2]
[357921470,1744563040043,-1748.31,0.00019726,2]
[357921471,1744563040053,-950.45,0.00019726,2]
[357921472,1744563040063,-150.0,0.00019729,2]
[357921473,1744563040072,-150.0,0.00019729,2]
[357921474,1744563040082,-150.0,0.00019738,2]
[357921475,1744563040091,-150.0,0.00019744,2]
[357921476,1744563040101,-150.0,0.00019745,2]
[357921477,1744563040111,-150.0,0.00019748,2]
[357921478,1744563040120,-150.0,0.00019754,2]
[357921479,1744563040130,-150.0,0.00019755,2]
[357921480,1744563040140,-150.0,0.00019757,2]
[357921481,1744563040149,-150.0,0.00019759,2]
[357921482,1744563040159,-150.0,0.00019761,2]
[357921483,1744563040169,-150.0,0.00019763,2]
[357921484,1744563040179,-150.0,0.00019766,2]
[357921485,1744563040189,-150.0,0.00019768,2]
[357921486,1744563040199,-150.0,0.00019769,2]
[357921487,1744563040209,-150.0,0.00019769,2]
[357921488,1744563040218,-150.0,0.00019769,2]
[357921489,1744563040228,-150.0,0.0001977,2]
[357921490,1744563040238,-150.0,0.00019771,2]
[357921491,1744563040248,-150.0,0.00019772,2]
[357921492,1744563040257,-150.0,0.00019774,2]
[357921493,1744563040267,-150.0,0.0001978,2]
[357921494,1744563040276,-150.0,0.00019783,2]
[357921495,1744563040287,-150.0,0.00019785,2]
[357921496,1744563040297,-150.0,0.00019787,2]
[357921497,1744563040306,-150.0,0.00019787,2]
[357921498,1744563040315,-150.0,0.00019787,2]
[357921499,1744563040325,-150.0,0.00019788,2]
[357921500,1744563040334,-150.0,0.00019789,2]
[357921501,1744563040344,-150.0,0.0001979,2]
[357921502,1744563040353,-150.0,0.000198,2]
[357921503,1744563040363,-150.0,0.00019802,2]
[357921504,1744563040372,-150.0,0.00019803,2]
[357921505,1744563040381,-150.0,0.00019805,2]
[357921506,1744563040391,-150.0,0.00019805,2]
[357921507,1744563040400,-150.0,0.00019806,2]
[357921509,1744563040409,-150.0,0.0001981,2]
[357921511,1744563040419,-150.0,0.00019811,2]
[357921513,1744563040429,-150.0,0.00019812,2]
[357921514,1744563040438,-150.0,0.00019813,2]
[357921515,1744563040448,-150.0,0.00019831,2]
[357921516,1744563040458,-150.0,0.00019831,2]
[357921517,1744563040472,-150.0,0.00019839,2]
[357921518,1744563040482,-150.0,0.00019839,2]
[357921519,1744563040492,-150.0,0.00019842,2]
[357921520,1744563040502,-150.0,0.00019843,2]
[357921521,1744563040512,-150.0,0.00019843,2]
[357921522,1744563040522,-150.0,0.00019844,2]
[357921523,1744563040531,-150.0,0.00019845,2]
[357921524,1744563040540,-150.0,0.00019846,2]
[357921525,1744563040551,-150.0,0.00019858,2]
[357921526,1744563040560,-150.0,0.00019861,2]
[357921527,1744563040570,-150.0,0.00019873,2]
[357921528,1744563040579,-150.0,0.00019874,2]
[357921529,1744563040589,-150.0,0.00019875,2]
[357921530,1744563040599,-150.0,0.00019882,2]
[357921532,1744563040609,-150.0,0.00019884,2]
[357921534,1744563040619,-150.0,0.00019885,2]
[357921536,1744563040629,-219.0,0.00019886,2]
[357921538,1744563040638,-150.0,0.00019895,2]
[357921540,1744563040648,-150.0,0.00019895,2]
[357921541,1744563040658,-150.0,0.00019896,2]
[357921542,1744563040667,-590.64938088,0.000199,2]
[357921543,1744563040676,-2406.29788776,0.000199,2]
[357921544,1744563040686,-328.76882112,0.000199,2]
[357921545,1744563040696,-150.0,0.00019901,2]
[357921546,1744563040709,-150.0,0.00019902,2]
[357921547,1744563040719,-150.0,0.00019911,2]
[357921548,1744563040728,-150.0,0.00019912,2]
[357921549,1744563040739,-150.0,0.00019915,2]
[357921550,1744563040751,-150.0,0.00019916,2]
[357921551,1744563040766,-150.0,0.00019917,2]
[357921552,1744563040778,-150.0,0.00019919,2]
[357921553,1744563040795,-150.0,0.0001992,2]
[357921554,1744563040808,-150.0,0.00019925,2]
[357921555,1744563040817,-150.0,0.00019926,2]
[357921556,1744563040828,-150.0,0.00019936,2]
[357921557,1744563040837,-150.0,0.00019936,2]
[357921558,1744563040846,-150.0,0.00019942,2]
[357921559,1744563040855,-1619.181,0.00019943,2]
[357921560,1744563040864,-150.0,0.00019943,2]
[357921561,1744563040874,-150.0,0.00019947,2]
[357921562,1744563040884,-150.0,0.0001995,2]
[357921563,1744563040894,-150.0,0.00019951,2]
[357921564,1744563040903,-150.0,0.00019952,2]
[357921565,1744563040912,-150.0,0.00019956,2]
[357921566,1744563040922,-150.0,0.00019956,2]
[357921567,1744563040931,-150.0,0.00019961,2]
[357921568,1744563040941,-150.0,0.00019961,2]
[357921569,1744563040950,-150.0,0.00019962,2]
[357921570,1744563040959,-150.0,0.00019965,2]
[357921571,1744563040968,-150.0,0.00019971,2]
[357921572,1744563040978,-500.0,0.00019973,2]
[357921573,1744563040989,-150.0,0.00019973,2]
[357921574,1744563041010,-150.0,0.00019975,2]
[357921575,1744563041021,-150.0,0.00019983,2]
[357921576,1744563041031,-150.0,0.00019984,2]
[357921577,1744563041040,-58156.60238626,0.00019985,2]
[357921578,1744563041248,-4955.22173893,0.00019985,2]
[357921579,1744563041258,-80062.53595866,0.00019985,2]
[357921580,1744563041267,-970.6771345,0.00019986,2]
[357921581,1744563041277,-2765.7550247,0.00019986,2]
[357921582,1744563041286,-15229.8325531,0.00019986,2]
[357921583,1744563041295,-150.0,0.00019987,2]
[357921584,1744563041304,-150.0,0.00019989,2]
[357921585,1744563041313,-166.79112563,0.00019989,2]
[357921586,1744563041323,-150.0,0.00019991,2]
[357921587,1744563041332,-150.0,0.00019991,2]
[357921588,1744563041341,-150.0,0.00019991,2]
[357921589,1744563041351,-150.0,0.00019992,2]
[357921590,1744563041360,-150.0,0.00019992,2]
[357921591,1744563041369,-150.0,0.00019994,2]
[357921592,1744563041378,-150.0,0.00019998,2]
[357921593,1744563041387,-152.0,0.00019999,2]
[357921594,1744563041396,-698.0,0.00019999,2]
[357921595,1744563041405,-3961.0,0.00019999,2]
[357921596,1744563041414,-705.729,0.00019999,2]
[357921597,1744563041423,-5847.89672155,0.00019999,2]
[357921598,1744563041432,-8099.76392374,0.00019999,2]
[357921599,1744563041441,-8837.78518635,0.0002,2]
[357921600,1744563041464,-150.0,0.00019955,2]
[357921601,1744563041473,-105.67474997,0.00019972,2]
[357921691,1744563044518,-150.0,0.00019734,2]
[357921692,1744563044528,-150.0,0.00019736,2]
[357921693,1744563044537,-150.0,0.00019739,2]
[357921694,1744563044547,-150.0,0.0001974,2]
[357921695,1744563044556,-150.0,0.00019742,2]
[357921696,1744563044566,-150.0,0.00019746,2]
[357921697,1744563044575,-150.0,0.00019749,2]